[Event "2nd Serbian League-Vojvodina 2023"]
[Site "Novi Sad"]
[Date "2023.11.06"]
[Round "6.23"]
[White "Pavkov, Nebojsa"]
[Black "Rosic, Slavko S"]
[Result "1/2-1/2"]
[ECO "A04"]
[WhiteElo "2199"]
[BlackElo "2212"]
[Annotator "RC"]
[PlyCount "150"]
[EventDate "2023.10.22"]
[EventType "team-tourn"]
[EventCountry "SRB"]
[SourceTitle "playchess.com"]
[Source "ChessBase"]
[SourceQuality "1"]
[TimeControl "40/5400+30:1800+30"]

1. Nf3 {[%emt 1:31:00]} Nf6 {[%emt 1:31:00]} 2. g3 {[%emt 0:00:30]} b6 {[%emt 0:00:30]} 3. d3 {[%emt 0:00:30]} d5 {[%emt 0:00:30]} 4. Bg2 {[%emt 0:00:30]} Bb7 {[%emt 0:00:30]} 5. O-O {[%emt 0:00:30]} c5 {[%emt 0:00:30]} 6. Nbd2 {[%emt 0:00:30]} Nbd7 {[%emt 0:00:30]} 7. Re1 {[%emt 0:00:30]} Qc7 {[%emt 0:00:30]} 8. e4 {[%emt 0:00:30]} dxe4 {[%emt 0:00:30]} 9. dxe4 {[%emt 0:00:30]} e5 {[%emt 0:00:30]} 10. Nh4 {[%emt 0:00:30]} g6 {[%emt 0:00:30]} 11. Nc4 {[%emt 0:00:30]} b5 {[%emt 0:00:30]} 12. Ne3 {[%emt 0:00:30]} Bg7 {[%emt 0:00:30]} 13. c4 {[%emt 0:00:30]} a6 {[%emt 0:00:30]} 14. g4 {[%emt 0:00:30]} h6 15. Nd5 Nxd5 16. cxd5 c4 {[%emt 0:01:30]} 17. Be3 {[%emt 0:01:30]} Bf8 {[%emt 0:00:30]} 18. Bf1 {[%emt 0:00:30]} Be7 {[%emt 0:00:30]} 19. Ng2 {[%emt 0:00:30]} Nf6 {[%emt 0:00:30]} 20. f3 {[%emt 0:00:30]} Nd7 {[%emt 0:00:30]} 21. a4 {[%emt 0:00:30]} h5 {[%emt 0:00:30]} 22. gxh5 {[%emt 0:00:30]} Rxh5 {[%emt 0:00:30]} 23. axb5 {[%emt 0:00:30]} axb5 {[%emt 0:00:30]} 24. Rxa8+ {[%emt 0:00:30]} Bxa8 {[%emt 0:00:30]} 25. Qa1 {[%emt 0:00:30]} Bb7 {[%emt 0:00:30]} 26. b3 {[%emt 0:00:30]} Rh3 {[%emt 0:00:30]} 27. bxc4 {[%emt 0:00:30]} bxc4 {[%emt 0:00:30]} 28. Rc1 {[%emt 0:00:30]} Rxf3 {[%emt 0:00:30]} 29. Rxc4 {[%emt 0:00:30]} Qd6 {[%emt 0:00:30]} 30. Be2 {[%emt 0:00:30]} Rxe3 {[%emt 0:00:30]} 31. Nxe3 {[%emt 0:00:30]} Qb6 {[%emt 0:00:30]} 32. Qc3 {[%emt 0:00:30]} Bg5 {[%emt 0:00:30]} 33. Kf2 {[%emt 0:00:30]} Kf8 {[%emt 0:00:30]} 34. Qb4+ {[%emt 0:00:30]} Qxb4 {[%emt 0:00:30]} 35. Rxb4 {[%emt 0:00:30]} Nc5 {[%emt 0:00:30]} 36. Bb5 {[%emt 0:00:30]} Be7 {[%emt 0:00:30]} 37. Rc4 {[%emt 0:00:30]} Bd6 {[%emt 0:00:30]} 38. Kf3 {[%emt 0:00:30]} f5 {[%emt 0:00:30]} 39. exf5 {[%emt 0:00:30]} gxf5 {[%emt 0:00:30]} 40. Bc6 {[%emt 0:00:30]} e4+ {[%emt 0:00:30]} 41. Kg2 {[%emt 0:30:30]} Bc8 {[%emt 0:30:30]} 42. Rc2 {[%emt 0:00:30]} f4 {[%emt 0:00:30]} 43. Nc4 {[%emt 0:00:30]} f3+ {[%emt 0:00:30]} 44. Kh1 {[%emt 0:00:30]} Ke7 {[%emt 0:00:30]} 45. Nd2 {[%emt 0:00:30]} Bh3 {[%emt 0:00:30]} 46. Kg1 {[%emt 0:00:30]} Bf4 {[%emt 0:00:30]} 47. Nxe4 {[%emt 0:00:30]} Be3+ {[%emt 0:00:30]} 48. Nf2 {[%emt 0:00:30]} Kd6 {[%emt 0:00:30]} 49. Rc3 {[%emt 0:00:30]} Bxf2+ {[%emt 0:00:30]} 50. Kxf2 {[%emt 0:00:30]} Ne4+ {[%emt 0:00:30]} 51. Kxf3 {[%emt 0:00:30]} Nxc3 {[%emt 0:00:30]} 52. Kg3 {[%emt 0:00:30]} Bf5 {[%emt 0:00:30]} 53. Kf4 {[%emt 0:00:30]} Bh3 {[%emt 0:00:30]} 54. Kg3 {[%emt 0:00:30]} Bf1 {[%emt 0:00:30]} 55. h4 {[%emt 0:00:30]} Ke5 {[%emt 0:00:30]} 56. Kg4 {[%emt 0:00:30]} Be2+ {[%emt 0:00:30]} 57. Kg5 {[%emt 0:00:30]} Ne4+ {[%emt 0:00:30]} 58. Kg6 {[%emt 0:00:30]} Nf6 {[%emt 0:00:30]} 59. Kg5 {[%emt 0:00:30]} Nh5 {[%emt 0:00:30]} 60. Be8 {[%emt 0:00:30]} Nf6 {[%emt 0:00:30]} 61. Bf7 {[%emt 0:00:30]} Ne4+ {[%emt 0:00:30]} 62. Kg6 {[%emt 0:00:30]} Bd3 {[%emt 0:00:30]} 63. h5 {[%emt 0:00:30]} Nd6+ {[%emt 0:00:30]} 64. Kg7 {[%emt 0:00:30]} Nf5+ {[%emt 0:00:30]} 65. Kg6 {[%emt 0:00:30]} Nh4+ {[%emt 0:00:30]} 66. Kg7 {[%emt 0:00:30]} Nf5+ {[%emt 0:00:30]} 67. Kg6 {[%emt 0:00:30]} Ng3+ {[%emt 0:00:30]} 68. Kg7 {[%emt 0:00:30]} Kd6 {[%emt 0:00:30]} 69. h6 {[%emt 0:00:30]} Nf5+ {[%emt 0:00:30]} 70. Kg6 {[%emt 0:00:30]} Ke7 {[%emt 0:00:30]} 71. Be6 {[%emt 0:00:30]} Nxh6+ {[%emt 0:00:30]} 72. Kxh6 {[%emt 0:00:30]} Kd6 {[%emt 0:00:30]} 73. Kg5 {[%emt 0:00:30]} Be4 {[%emt 0:00:30]} 74. Kf6 {[%emt 0:00:30]} Bxd5 {[%emt 0:00:30]} 75. Bxd5 {[%emt 0:00:30]} Kxd5 {[%emt 0:00:30]} 1/2-1/2

[Event "2nd Serbian League-Vojvodina 2023"]
[Site "Novi Sad"]
[Date "2023.11.06"]
[Round "6.24"]
[White "Skoko, Milan"]
[Black "Cica, Dragan"]
[Result "0-1"]
[ECO "B22"]
[WhiteElo "2108"]
[BlackElo "2125"]
[Annotator "RC"]
[PlyCount "36"]
[EventDate "2023.10.22"]
[EventType "team-tourn"]
[EventCountry "SRB"]
[SourceTitle "playchess.com"]
[Source "ChessBase"]
[SourceQuality "1"]
[TimeControl "40/5400+30:1800+30"]

1. e4 {[%emt 1:31:00]} c5 {[%emt 1:31:00]} 2. c3 {[%emt 0:00:30]} Nf6 {[%emt 0:00:30]} 3. e5 {[%emt 0:00:30]} Nd5 {[%emt 0:00:30]} 4. d4 {[%emt 0:00:30]} cxd4 {[%emt 0:00:30]} 5. Nf3 {[%emt 0:00:30]} Nc6 {[%emt 0:00:30]} 6. cxd4 {[%emt 0:00:30]} d6 {[%emt 0:00:30]} 7. Bc4 {[%emt 0:00:30]} Nb6 {[%emt 0:00:30]} 8. Bb3 {[%emt 0:00:30]} dxe5 {[%emt 0:00:30]} 9. d5 {[%emt 0:00:30]} Na5 {[%emt 0:00:30]} 10. Nc3 {[%emt 0:00:30]} g6 {[%emt 0:00:30]} 11. Nxe5 {[%emt 0:00:30]} Bg7 {[%emt 0:00:30]} 12. Ba4+ {[%emt 0:00:30]} Nd7 {[%emt 0:00:30]} 13. Nxd7 {[%emt 0:00:30]} Bxd7 {[%emt 0:00:30]} 14. Qg4 {[%emt 0:00:30]} b5 {[%emt 0:00:30]} 15. Bxb5 {[%emt 0:00:30]} Bxc3+ 16. bxc3 Bxb5 17. Qd4 f6 18. a4 Bc4 0-1

[Event "2nd Serbian League-Vojvodina 2023"]
[Site "Novi Sad"]
[Date "2023.11.06"]
[Round "7.1"]
[White "Georgiev, Krum"]
[Black "Skvortsov, Andrei"]
[Result "1/2-1/2"]
[ECO "B01"]
[WhiteElo "2294"]
[BlackElo "2294"]
[Annotator "RC"]
[PlyCount "68"]
[EventDate "2023.10.22"]
[EventType "team-tourn"]
[EventCountry "SRB"]
[SourceTitle "playchess.com"]
[Source "ChessBase"]
[SourceQuality "1"]
[TimeControl "40/5400+30:1800+30"]

1. e4 {[%emt 0:00:06]} d5 {[%emt 0:00:04]} 2. exd5 {[%emt 0:00:25]} Qxd5 {[%emt 0:00:04]} 3. Nc3 {[%emt 0:00:23]} Qe5+ {[%emt 0:00:06]} 4. Nge2 {[%emt 0:10:47]} Nf6 {[%emt 0:00:10]} 5. g3 {[%emt 0:11:06]} Nc6 {[%emt 0:03:31]} 6. Bg2 {[%emt 0:00:33]} Bf5 {[%emt 0:00:16]} 7. d4 {[%emt 0:15:24]} Qa5 {[%emt 0:00:17]} 8. Bd2 {[%emt 0:01:08]} O-O-O {[%emt 0:02:04]} 9. Nd5 {[%emt 0:11:50]} Qa6 {[%emt 0:05:12]} 10. Nxf6 {[%emt 0:02:54]} exf6 {[%emt 0:01:44]} 11. c3 {[%emt 0:00:31]} h5 {[%emt 0:14:44]} 12. O-O {[%emt 0:00:54]} h4 {[%emt 0:00:05]} 13. Nf4 {[%emt 0:02:21]} Bd6 {[%emt 0:03:50]} 14. Re1 {[%emt 0:01:28]} hxg3 {[%emt 1:05:23]} 15. hxg3 {[%emt 0:01:04]} g5 {[%emt 0:00:00]} 16. Nd5 {[%emt 0:37:36]} Rh6 {[%emt 0:00:00]} 17. Qf3 {[%emt 0:00:00]} Qd3 {[%emt 0:00:00]} 18. Qxd3 {[%emt 0:00:00]} Bxd3 {[%emt 0:00:00]} 19. Rad1 Bc2 {[%emt 0:00:00]} 20. Rc1 {[%emt 0:00:00]} Bf5 {[%emt 0:00:00]} 21. b4 {[%emt 0:00:00]} Rdh8 {[%emt 0:00:00]} 22. b5 {[%emt 0:00:00]} Nd8 {[%emt 0:00:00]} 23. c4 {[%emt 0:00:00]} Bh3 {[%emt 0:00:00]} 24. c5 {[%emt 0:00:00]} Bxg2 {[%emt 0:00:00]} 25. Kxg2 {[%emt 0:00:00]} Rh2+ {[%emt 0:00:00]} 26. Kf3 {[%emt 0:00:00]} Bxg3 {[%emt 0:00:00]} 27. Kxg3 {[%emt 0:00:00]} R8h3+ {[%emt 0:00:00]} 28. Kg4 {[%emt 0:00:00]} Rh4+ {[%emt 0:00:00]} 29. Kg3 {[%emt 0:00:00]} R4h3+ {[%emt 0:00:00]} 30. Kg4 {[%emt 0:00:00]} Rh4+ {[%emt 0:00:00]} 31. Kf3 {[%emt 0:07:30]} Rxd4 {[%emt 0:08:30]} 32. Ne7+ {[%emt 0:00:30]} Kd7 {[%emt 0:00:30]} 33. Be3 {[%emt 0:00:30]} g4+ {[%emt 0:00:30]} 34. Ke2 {[%emt 0:00:30]} Ra4 {[%emt 0:00:30]} 1/2-1/2

[Event "2nd Serbian League-Vojvodina 2023"]
[Site "Novi Sad"]
[Date "2023.11.06"]
[Round "7.2"]
[White "Levitan, Caleb Levi"]
[Black "Mijatovic, Dusan"]
[Result "1/2-1/2"]
[ECO "C17"]
[WhiteElo "2219"]
[BlackElo "2139"]
[Annotator "RC"]
[PlyCount "43"]
[EventDate "2023.10.22"]
[EventType "team-tourn"]
[EventCountry "SRB"]
[SourceTitle "playchess.com"]
[Source "ChessBase"]
[SourceQuality "1"]
[TimeControl "40/5400+30:1800+30"]

1. e4 {[%emt 0:00:04]} e6 {[%emt 0:00:08]} 2. d4 {[%emt 0:00:11]} d5 {[%emt 0:00:01]} 3. Nc3 {[%emt 0:00:08]} Bb4 {[%emt 0:00:06]} 4. e5 {[%emt 0:00:18]} c5 {[%emt 0:00:08]} 5. Bd2 {[%emt 0:00:40]} Ne7 {[%emt 0:00:26]} 6. Nb5 {[%emt 0:00:33]} Bxd2+ {[%emt 0:00:09]} 7. Qxd2 {[%emt 0:00:02]} O-O {[%emt 0:00:19]} 8. f4 {[%emt 0:00:32]} Bd7 {[%emt 0:00:35]} 9. Nd6 {[%emt 0:02:58]} cxd4 {[%emt 0:00:15]} 10. Nf3 {[%emt 0:01:00]} Nbc6 {[%emt 0:00:21]} 11. Bd3 {[%emt 0:00:44]} f6 {[%emt 0:00:22]} 12. O-O {[%emt 0:01:04]} fxe5 {[%emt 0:00:30]} 13. fxe5 {[%emt 0:00:15]} Rxf3 {[%emt 0:00:06]} 14. Rxf3 {[%emt 0:06:23]} Nxe5 {[%emt 0:00:02]} 15. Rh3 {[%emt 0:08:20]} N7g6 {[%emt 0:00:32]} 16. Nxb7 {[%emt 0:16:59]} Qc7 {[%emt 0:04:02]} 17. Na5 {[%emt 0:01:24]} Nxd3 {[%emt 0:00:36]} 18. cxd3 {[%emt 0:01:33]} e5 {[%emt 0:00:54]} 19. Rg3 {[%emt 0:01:36]} Nf4 {[%emt 0:00:22]} 20. Nb3 {[%emt 0:01:17]} a5 {[%emt 0:13:01]} 21. Re1 {[%emt 0:06:18]} Bb5 {[%emt 0:15:44]} 22. Rf3 {[%emt 0:49:11]} 1/2-1/2

[Event "2nd Serbian League-Vojvodina 2023"]
[Site "Novi Sad"]
[Date "2023.11.06"]
[Round "7.3"]
[White "Mijatovic, Dejan"]
[Black "Ljepic, Andrej"]
[Result "0-1"]
[ECO "A47"]
[WhiteElo "2185"]
[BlackElo "2236"]
[Annotator "RC"]
[PlyCount "74"]
[EventDate "2023.10.22"]
[EventType "team-tourn"]
[EventCountry "SRB"]
[SourceTitle "playchess.com"]
[Source "ChessBase"]
[SourceQuality "1"]
[TimeControl "40/5400+30:1800+30"]

1. Nf3 {[%emt 0:00:07]} Nf6 {[%emt 0:00:11]} 2. d4 {[%emt 0:00:30]} e6 {[%emt 0:00:19]} 3. Bf4 {[%emt 0:02:30]} c5 {[%emt 0:00:37]} 4. e3 {[%emt 0:00:11]} b6 {[%emt 0:00:30]} 5. Bd3 {[%emt 0:01:14]} Bb7 {[%emt 0:00:38]} 6. Nbd2 {[%emt 0:00:16]} Be7 {[%emt 0:01:14]} 7. h3 {[%emt 0:01:37]} d6 {[%emt 0:01:21]} 8. O-O {[%emt 0:01:30]} O-O {[%emt 0:00:33]} 9. Qb1 {[%emt 0:08:56]} Nbd7 {[%emt 0:03:08]} 10. c3 {[%emt 0:00:13]} Qc7 {[%emt 0:03:30]} 11. e4 {[%emt 0:03:06]} e5 {[%emt 0:02:44]} 12. dxe5 {[%emt 0:01:33]} dxe5 {[%emt 0:02:37]} 13. Bh2 {[%emt 0:00:22]} Rfe8 {[%emt 0:01:52]} 14. Nc4 {[%emt 0:03:00]} Bf8 {[%emt 0:00:15]} 15. Ne3 {[%emt 0:00:20]} g6 {[%emt 0:04:40]} 16. c4 {[%emt 0:04:34]} a6 {[%emt 0:03:57]} 17. a4 {[%emt 0:00:22]} Bh6 {[%emt 0:01:32]} 18. Nd5 {[%emt 0:04:35]} Nxd5 {[%emt 0:00:38]} 19. exd5 {[%emt 0:00:22]} Bg7 {[%emt 0:12:03]} 20. g4 {[%emt 0:03:13]} b5 {[%emt 0:02:50]} 21. axb5 {[%emt 0:13:23]} axb5 {[%emt 0:00:52]} 22. Rxa8 {[%emt 0:00:19]} Rxa8 {[%emt 0:00:48]} 23. cxb5 {[%emt 0:01:01]} Bxd5 {[%emt 0:01:23]} 24. Be4 {[%emt 0:02:36]} Qb7 {[%emt 0:02:13]} 25. Bxd5 {[%emt 0:02:21]} Qxd5 {[%emt 0:00:12]} 26. Rd1 {[%emt 0:00:42]} Qxf3 {[%emt 0:25:45]} 27. Rxd7 {[%emt 0:00:17]} h6 {[%emt 0:02:58]} 28. b6 {[%emt 0:07:49]} Rb8 {[%emt 0:03:44]} 29. Rd3 {[%emt 0:03:47]} Qc6 {[%emt 0:02:36]} 30. Qc2 {[%emt 0:23:26]} Rxb6 {[%emt 0:01:37]} 31. Rc3 {[%emt 0:00:38]} Rb5 {[%emt 0:02:25]} 32. b4 {[%emt 0:00:22]} Rxb4 {[%emt 0:01:41]} 33. Rxc5 {[%emt 0:00:11]} Qf3 {[%emt 0:04:11]} 34. Rc3 {[%emt 0:03:30]} Qb7 {[%emt 0:00:15]} 35. Qd2 {[%emt 0:01:11]} Rd4 {[%emt 0:01:11]} 36. Qe2 {[%emt 0:03:09]} Qd5 {[%emt 0:00:20]} 37. Re3 {[%emt 0:00:23]} Rd1+ {[%emt 0:00:10]} 0-1

[Event "2nd Serbian League-Vojvodina 2023"]
[Site "Novi Sad"]
[Date "2023.11.06"]
[Round "7.4"]
[White "Dimitrijevic, Nenad"]
[Black "Rosic, Slavko S"]
[Result "0-1"]
[ECO "B90"]
[WhiteElo "2196"]
[BlackElo "2212"]
[Annotator "RC"]
[PlyCount "142"]
[EventDate "2023.10.22"]
[EventType "team-tourn"]
[EventCountry "SRB"]
[SourceTitle "playchess.com"]
[Source "ChessBase"]
[SourceQuality "1"]
[TimeControl "40/5400+30:1800+30"]

1. e4 {[%emt 0:00:30]} c5 {[%emt 0:00:06]} 2. Nf3 {[%emt 0:00:00]} d6 {[%emt 0:00:15]} 3. d4 {[%emt 0:00:00]} cxd4 {[%emt 0:00:06]} 4. Nxd4 {[%emt 0:00:00]} Nf6 {[%emt 0:00:09]} 5. Nc3 {[%emt 0:00:00]} a6 {[%emt 0:00:07]} 6. f3 {[%emt 0:00:00]} b5 {[%emt 0:04:45]} 7. a3 {[%emt 0:02:59]} g6 {[%emt 0:00:09]} 8. Be3 {[%emt 0:00:14]} Bg7 {[%emt 0:00:09]} 9. Qd2 {[%emt 0:00:16]} Qc7 {[%emt 0:01:40]} 10. Bh6 {[%emt 0:00:26]} Bxh6 {[%emt 0:01:15]} 11. Qxh6 {[%emt 0:00:05]} Bb7 {[%emt 0:00:08]} 12. O-O-O {[%emt 0:00:37]} Qc5 {[%emt 0:01:33]} 13. Nb3 {[%emt 0:02:48]} Qb6 {[%emt 0:01:43]} 14. Qd2 {[%emt 0:03:46]} Nbd7 {[%emt 0:00:30]} 15. Kb1 {[%emt 0:03:54]} Rc8 {[%emt 0:00:19]} 16. Ne2 {[%emt 0:05:51]} Ne5 {[%emt 0:00:50]} 17. Na5 {[%emt 0:00:21]} Ba8 {[%emt 0:05:03]} 18. Nf4 {[%emt 0:07:07]} Rc7 {[%emt 0:01:13]} 19. Be2 {[%emt 0:07:31]} h5 {[%emt 0:00:29]} 20. h4 {[%emt 0:01:22]} O-O {[%emt 0:01:00]} 21. Nh3 {[%emt 0:13:04]} Kg7 {[%emt 0:05:15]} 22. Rhf1 {[%emt 0:08:18]} Rfc8 {[%emt 0:03:06]} 23. Rc1 {[%emt 0:00:11]} d5 {[%emt 0:05:57]} 24. Qf4 {[%emt 0:13:46]} Nc4 {[%emt 0:14:51]} 25. Nxc4 {[%emt 0:03:12]} bxc4 {[%emt 0:00:39]} 26. e5 {[%emt 0:03:32]} Nh7 {[%emt 0:01:47]} 27. c3 {[%emt 0:00:32]} Rb8 {[%emt 0:00:29]} 28. Rc2 {[%emt 0:00:09]} Rc5 {[%emt 0:03:28]} 29. Rf2 {[%emt 0:01:39]} Ra5 {[%emt 0:02:04]} 30. Kc1 {[%emt 0:00:27]} Bc6 {[%emt 0:00:11]} 31. Bd1 {[%emt 0:04:40]} Ba4 {[%emt 0:01:58]} 32. Rcd2 {[%emt 0:00:57]} Bd7 {[%emt 0:00:15]} 33. Qd4 {[%emt 0:04:32]} Rxa3 {[%emt 0:00:54]} 34. e6+ {[%emt 0:01:28]} Qxd4 {[%emt 0:00:47]} 35. Rxd4 {[%emt 0:02:43]} Ra1+ {[%emt 0:00:21]} 36. Kd2 {[%emt 0:00:37]} Bxe6 {[%emt 0:00:16]} 37. Ke3 {[%emt 0:00:36]} Bxh3 {[%emt 0:00:14]} 38. gxh3 {[%emt 0:00:05]} Nf6 {[%emt 0:00:06]} 39. Rdd2 {[%emt 0:01:22]} e5 {[%emt 0:00:18]} 40. Rg2 {[%emt 0:00:23]} Rd8 {[%emt 0:01:27]} 41. Bc2 {[%emt 0:30:26]} Rh1 {[%emt 0:31:02]} 42. Rg5 {[%emt 0:00:48]} e4 {[%emt 0:01:02]} 43. fxe4 {[%emt 0:00:37]} Rxh3+ {[%emt 0:00:07]} 44. Kf2 {[%emt 0:00:35]} Rh2+ {[%emt 0:00:33]} 45. Rg2 {[%emt 0:00:21]} Ng4+ {[%emt 0:00:17]} 46. Kg3 {[%emt 0:00:11]} Rxg2+ {[%emt 0:00:18]} 47. Kxg2 {[%emt 0:01:22]} Rb8 {[%emt 0:01:03]} 48. exd5 {[%emt 0:00:29]} Rxb2 {[%emt 0:00:09]} 49. Kf3 {[%emt 0:00:11]} a5 {[%emt 0:00:08]} 50. d6 {[%emt 0:00:18]} a4 {[%emt 0:00:15]} 51. Ke2 {[%emt 0:01:03]} Nf6 {[%emt 0:01:15]} 52. Bxa4 {[%emt 0:00:17]} Rxd2+ {[%emt 0:00:18]} 53. Kxd2 {[%emt 0:00:07]} Ne4+ {[%emt 0:00:04]} 54. Ke3 {[%emt 0:00:24]} Nxd6 {[%emt 0:00:03]} 55. Kd4 {[%emt 0:01:05]} Kf6 {[%emt 0:00:17]} 56. Kd5 {[%emt 0:00:09]} Ke7 {[%emt 0:00:09]} 57. Bd1 {[%emt 0:00:30]} Nf5 {[%emt 0:00:27]} 58. Be2 {[%emt 0:00:24]} f6 {[%emt 0:00:29]} 59. Kxc4 {[%emt 0:00:26]} Kd6 {[%emt 0:01:12]} 60. Kb5 {[%emt 0:00:40]} Nxh4 {[%emt 0:00:08]} 61. c4 {[%emt 0:00:07]} Nf5 {[%emt 0:00:38]} 62. Kb6 {[%emt 0:00:18]} Nd4 {[%emt 0:00:34]} 63. c5+ {[%emt 0:00:20]} Ke5 {[%emt 0:02:27]} 64. c6 {[%emt 0:00:33]} Nxc6 {[%emt 0:00:27]} 65. Kxc6 {[%emt 0:00:03]} h4 {[%emt 0:00:07]} 66. Kc5 {[%emt 0:02:32]} h3 {[%emt 0:01:09]} 67. Bg4 {[%emt 0:04:35]} h2 {[%emt 0:00:19]} 68. Bf3 {[%emt 0:00:01]} Kf4 {[%emt 0:00:42]} 69. Ba8 {[%emt 0:00:01]} Ke3 {[%emt 0:00:31]} 70. Kd6 {[%emt 0:00:17]} f5 {[%emt 0:00:08]} 71. Ke5 {[%emt 0:00:11]} f4 {[%emt 0:43:50]} 0-1

[Event "2nd Serbian League-Vojvodina 2023"]
[Site "Novi Sad"]
[Date "2023.11.06"]
[Round "7.5"]
[White "Bojkovic, Slobodan"]
[Black "Bokan, Danko"]
[Result "1/2-1/2"]
[ECO "C96"]
[WhiteElo "2031"]
[BlackElo "2135"]
[Annotator "RC"]
[PlyCount "20"]
[EventDate "2023.10.22"]
[EventType "team-tourn"]
[EventCountry "SRB"]
[SourceTitle "playchess.com"]
[Source "ChessBase"]
[SourceQuality "1"]
[TimeControl "40/5400+30:1800+30"]

1. e4 {[%emt 0:00:04]} e5 {[%emt 0:03:19]} 2. Nf3 {[%emt 0:00:10]} Nc6 {[%emt 0:00:06]} 3. Bb5 {[%emt 1:31:46]} a6 {[%emt 1:28:35]} 4. Ba4 {[%emt 0:00:00]} Nf6 {[%emt 0:00:00]} 5. O-O {[%emt 0:00:00]} Be7 {[%emt 0:00:00]} 6. Re1 {[%emt 0:01:30]} b5 {[%emt 0:01:30]} 7. Bb3 {[%emt 0:00:00]} d6 {[%emt 0:00:00]} 8. c3 {[%emt 0:00:00]} O-O {[%emt 0:00:00]} 9. h3 {[%emt 0:00:00]} Na5 {[%emt 0:00:00]} 10. Bc2 {[%emt 0:02:00]} c5 {[%emt 0:02:00]} 1/2-1/2

[Event "2nd Serbian League-Vojvodina 2023"]
[Site "Novi Sad"]
[Date "2023.11.06"]
[Round "7.6"]
[White "Leskovac, Nikola"]
[Black "Skoko, Milan"]
[Result "1/2-1/2"]
[ECO "B31"]
[WhiteElo "1927"]
[BlackElo "2108"]
[Annotator "RC"]
[PlyCount "137"]
[EventDate "2023.10.22"]
[EventType "team-tourn"]
[EventCountry "SRB"]
[SourceTitle "playchess.com"]
[Source "ChessBase"]
[SourceQuality "1"]
[TimeControl "40/5400+30:1800+30"]

1. e4 {[%emt 0:00:09]} c5 {[%emt 0:00:41]} 2. Nf3 {[%emt 0:00:36]} Nc6 {[%emt 0:00:05]} 3. Bb5 {[%emt 0:01:26]} g6 {[%emt 0:00:09]} 4. Bxc6 {[%emt 0:01:38]} dxc6 {[%emt 0:00:10]} 5. h3 {[%emt 0:01:26]} Bg7 {[%emt 1:31:55]} 6. O-O {[%emt 1:28:15]} e5 {[%emt 0:00:00]} 7. d3 {[%emt 0:00:00]} b6 {[%emt 0:00:00]} 8. Be3 {[%emt 0:00:00]} f6 {[%emt 0:00:00]} 9. a4 {[%emt 0:00:00]} a5 {[%emt 0:00:00]} 10. Nc3 {[%emt 0:00:00]} Nh6 {[%emt 0:00:00]} 11. Nd2 {[%emt 0:00:00]} Nf7 {[%emt 0:00:00]} 12. f4 {[%emt 0:00:00]} O-O {[%emt 0:00:00]} 13. Qe2 {[%emt 0:00:00]} Bh6 {[%emt 0:00:00]} 14. Rf2 {[%emt 0:00:00]} Ra7 {[%emt 0:00:00]} 15. Raf1 {[%emt 0:00:00]} exf4 {[%emt 0:00:00]} 16. Bxf4 {[%emt 0:00:00]} Bxf4 {[%emt 0:00:00]} 17. Rxf4 {[%emt 0:00:00]} Ne5 {[%emt 0:00:00]} 18. Nf3 {[%emt 0:00:00]} Nxf3+ {[%emt 0:00:00]} 19. Qxf3 {[%emt 0:00:00]} Qd4+ {[%emt 0:00:00]} 20. Kh1 {[%emt 0:00:00]} Raf7 {[%emt 0:00:00]} 21. e5 {[%emt 0:00:00]} Qxe5 {[%emt 0:00:00]} 22. Qxc6 {[%emt 0:00:00]} g5 {[%emt 0:08:30]} 23. Re4 {[%emt 0:00:00]} Qg3 {[%emt 0:00:00]} 24. Rf3 {[%emt 0:00:00]} Qc7 {[%emt 0:00:00]} 25. Qxc7 {[%emt 0:00:00]} Rxc7 {[%emt 0:00:00]} 26. Nd5 {[%emt 0:00:00]} Rcf7 {[%emt 0:00:00]} 27. Ne7+ {[%emt 0:00:00]} Kg7 {[%emt 0:00:00]} 28. Nxc8 {[%emt 0:00:00]} Rxc8 {[%emt 0:00:00]} 29. Re6 {[%emt 0:00:00]} Rb8 {[%emt 0:00:00]} 30. Rf5 {[%emt 0:00:00]} Rbb7 {[%emt 0:00:00]} 31. Kg1 {[%emt 0:00:00]} Kg6 {[%emt 0:00:00]} 32. g4 {[%emt 0:00:00]} h5 {[%emt 0:00:00]} 33. Kf2 {[%emt 0:00:00]} hxg4 {[%emt 0:00:00]} 34. hxg4 {[%emt 0:00:00]} b5 {[%emt 0:00:00]} 35. axb5 {[%emt 0:00:47]} Rxb5 {[%emt 0:00:00]} 36. b3 {[%emt 0:00:39]} Rb4 {[%emt 0:00:00]} 37. Kf3 {[%emt 0:03:00]} a4 {[%emt 0:00:00]} 38. bxa4 {[%emt 0:00:23]} Rxa4 {[%emt 0:00:00]} 39. Rxc5 {[%emt 0:00:42]} Rf4+ {[%emt 0:00:00]} 40. Ke3 {[%emt 0:06:25]} Rh7 {[%emt 0:00:00]} 41. Rcc6 {[%emt 0:32:36]} Rh3+ {[%emt 0:17:55]} 42. Kd2 {[%emt 0:00:09]} Rg3 {[%emt 0:00:42]} 43. c4 {[%emt 0:01:00]} Rgxg4 {[%emt 0:00:27]} 44. Rcd6 {[%emt 0:00:11]} Rg2+ {[%emt 0:00:35]} 45. Kc3 {[%emt 0:00:14]} Rg1 {[%emt 0:00:23]} 46. d4 {[%emt 0:01:19]} g4 {[%emt 0:00:35]} 47. Re3 {[%emt 0:01:49]} Rf3 {[%emt 0:03:07]} 48. Kd3 {[%emt 0:00:45]} Rd1+ {[%emt 0:01:02]} 49. Ke4 {[%emt 0:00:26]} Rdf1 {[%emt 0:03:02]} 50. Rxf3 {[%emt 0:00:32]} Rxf3 {[%emt 0:00:08]} 51. Rd8 {[%emt 0:00:31]} f5+ {[%emt 0:00:04]} 52. Kd5 {[%emt 0:00:08]} Kg5 {[%emt 0:00:48]} 53. Rg8+ {[%emt 0:00:19]} Kf4 {[%emt 0:00:09]} 54. c5 {[%emt 0:00:29]} g3 {[%emt 0:00:19]} 55. Kd6 {[%emt 0:00:09]} Rc3 {[%emt 0:00:19]} 56. d5 {[%emt 0:00:20]} Kf3 {[%emt 0:00:07]} 57. c6 {[%emt 0:00:20]} f4 {[%emt 0:00:19]} 58. c7 {[%emt 0:00:07]} g2 {[%emt 0:01:08]} 59. Kd7 {[%emt 0:00:09]} Kf2 {[%emt 0:00:16]} 60. c8=Q {[%emt 0:00:30]} Rxc8 {[%emt 0:00:54]} 61. Kxc8 {[%emt 0:00:06]} g1=Q {[%emt 0:00:22]} 62. Rxg1 {[%emt 0:00:00]} Kxg1 {[%emt 0:00:02]} 63. d6 {[%emt 0:00:00]} f3 {[%emt 0:00:02]} 64. d7 {[%emt 0:00:00]} f2 {[%emt 0:00:02]} 65. d8=Q {[%emt 0:00:04]} f1=Q {[%emt 0:00:45]} 66. Qg5+ {[%emt 0:00:07]} Qg2 {[%emt 0:00:12]} 67. Qe3+ {[%emt 0:00:10]} Qf2 {[%emt 0:00:02]} 68. Qe8 {[%emt 0:06:34]} Qf8 69. Qxf8 1/2-1/2